[Event "Titled Tuesday Blitz October 25 Late 2022"]
[White "Osiecki, Stanislaw"]
[Black "Gogolev, Artem"]
[WhiteFideId "1102990"]
[BlackFideId "4116615"]
[WhiteElo "2088"]
[BlackElo "2178"]
[Result "0-1"]
[Round "01"]
[TimeControl "180+1"]
[Date "2022.10.26"]
[WhiteClock "0:00:02"]
[BlackClock "0:00:36"]

1. e4 {[%clk 0:02:59]}  c6 {[%clk 0:02:56]} 2. d4 {[%clk 0:02:58]}  d5 {[%clk 0:02:57]} 3. e5 {[%clk 0:02:57]}  Bf5 {[%clk 0:02:56]} 4. Bd3 {[%clk 0:02:57]}  Bxd3 {[%clk 0:02:53]} 5. Qxd3 {[%clk 0:02:56]}  e6 {[%clk 0:02:53]} 6. c3 {[%clk 0:02:57]}  c5 {[%clk 0:02:46]} 7. Ne2 {[%clk 0:02:57]}  Nc6 {[%clk 0:02:46]} 8. O-O {[%clk 0:02:57]}  Qc7 {[%clk 0:02:34]} 9. a3 {[%clk 0:02:53]}  c4 {[%clk 0:02:18]} 10. Qh3 {[%clk 0:02:51]}  Nge7 {[%clk 0:02:14]} 11. f4 {[%clk 0:02:51]}  Na5 {[%clk 0:02:07]} 12. Nd2 {[%clk 0:02:49]}  O-O-O {[%clk 0:02:06]} 13. Ng3 {[%clk 0:02:47]}  g6 {[%clk 0:02:01]} 14. Nf3 {[%clk 0:02:31]}  Nb3 {[%clk 0:01:57]} 15. Rb1 {[%clk 0:02:30]}  Nf5 {[%clk 0:01:51]} 16. Nxf5 {[%clk 0:02:29]}  gxf5 {[%clk 0:01:50]} 17. Kh1 {[%clk 0:02:26]}  Be7 {[%clk 0:01:49]} 18. Be3 {[%clk 0:02:25]}  Rdg8 {[%clk 0:01:49]} 19. Rf2 {[%clk 0:02:20]}  Rg6 {[%clk 0:01:43]} 20. Nd2 {[%clk 0:02:17]}  h5 {[%clk 0:01:19]} 21. Qf3 {[%clk 0:02:15]}  Kb8 {[%clk 0:01:14]} 22. Nxb3 {[%clk 0:02:14]}  cxb3 {[%clk 0:01:14]} 23. Qe2 {[%clk 0:02:07]}  h4 {[%clk 0:01:09]} 24. Rg1 {[%clk 0:02:00]}  Qc6 {[%clk 0:01:06]} 25. Rf3 {[%clk 0:01:47]}  Rg4 {[%clk 0:01:03]} 26. Bf2 {[%clk 0:01:35]}  Bf8 {[%clk 0:00:58]} 27. h3 {[%clk 0:01:27]}  Rg6 {[%clk 0:00:56]} 28. Qe1 {[%clk 0:01:26]}  Be7 {[%clk 0:00:56]} 29. Qe2 {[%clk 0:01:20]}  a6 {[%clk 0:00:53]} 30. Be3 {[%clk 0:01:15]}  Rhg8 {[%clk 0:00:50]} 31. Bf2 {[%clk 0:01:12]}  Kc7 {[%clk 0:00:50]} 32. Qe1 {[%clk 0:01:10]}  Rh8 {[%clk 0:00:50]} 33. Qe2 {[%clk 0:01:10]}  Qc4 {[%clk 0:00:50]} 34. Qxc4+ {[%clk 0:01:09]}  dxc4 {[%clk 0:00:51]} 35. Re3 {[%clk 0:01:03]}  Kc6 {[%clk 0:00:50]} 36. Kh2 {[%clk 0:00:59]}  Kd5 {[%clk 0:00:47]} 37. Re2 {[%clk 0:00:57]}  Bf8 {[%clk 0:00:44]} 38. Be3 {[%clk 0:00:55]}  Rg3 {[%clk 0:00:42]} 39. Bd2 {[%clk 0:00:42]}  Bh6 {[%clk 0:00:41]} 40. Be1 {[%clk 0:00:37]}  Rd3 {[%clk 0:00:41]} 41. Rf1 {[%clk 0:00:34]}  Rd1 {[%clk 0:00:37]} 42. Kg1 {[%clk 0:00:27]}  Bf8 {[%clk 0:00:36]} 43. Bf2 {[%clk 0:00:24]}  Rxf1+ {[%clk 0:00:35]} 44. Kxf1 {[%clk 0:00:24]}  Be7 {[%clk 0:00:36]} 45. Kg1 {[%clk 0:00:23]}  Rg8 {[%clk 0:00:35]} 46. Kh2 {[%clk 0:00:23]}  b5 {[%clk 0:00:36]} 47. Kg1 {[%clk 0:00:22]}  a5 {[%clk 0:00:36]} 48. Kh2 {[%clk 0:00:23]}  b4 {[%clk 0:00:36]} 49. axb4 {[%clk 0:00:22]}  axb4 {[%clk 0:00:37]} 50. cxb4 {[%clk 0:00:21]}  Rb8 {[%clk 0:00:36]} 51. Be1 {[%clk 0:00:20]}  Bxb4 {[%clk 0:00:36]} 52. Bf2 {[%clk 0:00:11]}  c3 {[%clk 0:00:35]} 53. bxc3 {[%clk 0:00:08]}  Bxc3 {[%clk 0:00:36]} 54. Bxh4 {[%clk 0:00:02]}  b2 {[%clk 0:00:36]} 0-1


[Site "https://www.chess.com"]

[Event "Titled Tuesday Blitz October 25 Late 2022"]
[White "Ozates, Tuna"]
[Black "Bortnyk, Olexandr"]
[WhiteFideId "6354521"]
[BlackFideId "14120828"]
[WhiteElo "2151"]
[BlackElo "2723"]
[Result "0-1"]
[Round "01"]
[TimeControl "180+1"]
[Date "2022.10.26"]
[WhiteClock "0:01:22"]
[BlackClock "0:02:21"]

1. e4 {[%clk 0:02:59]}  Nf6 {[%clk 0:02:58]} 2. e5 {[%clk 0:02:59]}  Nd5 {[%clk 0:02:58]} 3. d4 {[%clk 0:02:59]}  d6 {[%clk 0:02:58]} 4. Nf3 {[%clk 0:03:00]}  dxe5 {[%clk 0:02:58]} 5. Nxe5 {[%clk 0:03:01]}  c6 {[%clk 0:02:59]} 6. Bd3 {[%clk 0:02:59]}  Nd7 {[%clk 0:02:59]} 7. Nf3 {[%clk 0:02:51]}  N7f6 {[%clk 0:02:59]} 8. O-O {[%clk 0:02:51]}  Nb4 {[%clk 0:02:59]} 9. Be2 {[%clk 0:02:48]}  Bf5 {[%clk 0:02:59]} 10. Na3 {[%clk 0:02:48]}  e6 {[%clk 0:02:59]} 11. c3 {[%clk 0:02:48]}  Nbd5 {[%clk 0:03:00]} 12. Nc4 {[%clk 0:02:48]}  Be7 {[%clk 0:03:00]} 13. Nce5 {[%clk 0:02:48]}  O-O {[%clk 0:03:01]} 14. h3 {[%clk 0:02:46]}  c5 {[%clk 0:03:01]} 15. Bg5 {[%clk 0:02:45]}  h6 {[%clk 0:02:56]} 16. Bh4 {[%clk 0:02:45]}  Rc8 {[%clk 0:02:51]} 17. Bg3 {[%clk 0:02:36]}  Ne4 {[%clk 0:02:49]} 18. Bh2 {[%clk 0:02:36]}  cxd4 {[%clk 0:02:49]} 19. Nxd4 {[%clk 0:02:36]}  Ndxc3 {[%clk 0:02:49]} 20. Nxf5 {[%clk 0:02:22]}  Nxd1 {[%clk 0:02:45]} 21. Raxd1 {[%clk 0:02:17]}  exf5 {[%clk 0:02:44]} 22. Rxd8 {[%clk 0:02:06]}  Bxd8 {[%clk 0:02:44]} 23. Nd7 {[%clk 0:01:46]}  Re8 {[%clk 0:02:43]} 24. Bb5 {[%clk 0:01:45]}  a6 {[%clk 0:02:41]} 25. Ba4 {[%clk 0:01:45]}  b5 {[%clk 0:02:42]} 26. Bb3 {[%clk 0:01:45]}  Nd2 {[%clk 0:02:42]} 27. Rd1 {[%clk 0:01:43]}  Nxb3 {[%clk 0:02:40]} 28. axb3 {[%clk 0:01:44]}  Ba5 {[%clk 0:02:38]} 29. Bf4 {[%clk 0:01:42]}  Re1+ {[%clk 0:02:26]} 30. Rxe1 {[%clk 0:01:40]}  Bxe1 {[%clk 0:02:27]} 31. Kf1 {[%clk 0:01:38]}  Ba5 {[%clk 0:02:23]} 32. Nb8 {[%clk 0:01:38]}  Bc7 {[%clk 0:02:19]} 33. Bxc7 {[%clk 0:01:35]}  Rxc7 {[%clk 0:02:20]} 34. Nxa6 {[%clk 0:01:35]}  Rc1+ {[%clk 0:02:21]} 35. Ke2 {[%clk 0:01:33]}  Rc2+ {[%clk 0:02:22]} 36. Ke3 {[%clk 0:01:34]}  Rxb2 {[%clk 0:02:23]} 37. Nc5 {[%clk 0:01:31]}  g5 {[%clk 0:02:23]} 38. g3 {[%clk 0:01:31]}  Kg7 {[%clk 0:02:23]} 39. f4 {[%clk 0:01:30]}  g4 {[%clk 0:02:23]} 40. hxg4 {[%clk 0:01:28]}  fxg4 {[%clk 0:02:24]} 41. f5 {[%clk 0:01:29]}  Kf6 {[%clk 0:02:23]} 42. Kf4 {[%clk 0:01:29]}  Rf2+ {[%clk 0:02:21]} 43. Kxg4 {[%clk 0:01:29]}  Rxf5 {[%clk 0:02:21]} 44. Nd7+ {[%clk 0:01:27]}  Ke6 {[%clk 0:02:22]} 45. Nf8+ {[%clk 0:01:23]}  Ke5 {[%clk 0:02:22]} 46. Nd7+ {[%clk 0:01:21]}  Ke4 {[%clk 0:02:22]} 47. b4 {[%clk 0:01:21]}  Rg5+ {[%clk 0:02:22]} 48. Kh4 {[%clk 0:01:22]}  Kf3 {[%clk 0:02:21]} 0-1


[Site "https://www.chess.com"]

[Event "Titled Tuesday Blitz October 25 Late 2022"]
[White "Pakleza, Zbigniew"]
[Black "Omariev, Maksim"]
[WhiteFideId "1119290"]
[BlackFideId "4193423"]
[WhiteElo "2411"]
[BlackElo "2417"]
[Result "0-1"]
[Round "01"]
[TimeControl "180+1"]
[Date "2022.10.26"]
[WhiteClock "0:00:01"]
[BlackClock "0:00:03"]

1. d4 {[%clk 0:03:00]}  d5 {[%clk 0:02:55]} 2. Bf4 {[%clk 0:03:00]}  Nf6 {[%clk 0:02:54]} 3. e3 {[%clk 0:03:00]}  c5 {[%clk 0:02:54]} 4. c3 {[%clk 0:03:01]}  Qb6 {[%clk 0:02:52]} 5. Qb3 {[%clk 0:03:01]}  Nc6 {[%clk 0:02:50]} 6. Nd2 {[%clk 0:03:00]}  c4 {[%clk 0:02:50]} 7. Qc2 {[%clk 0:03:01]}  g6 {[%clk 0:02:48]} 8. e4 {[%clk 0:02:54]}  Nxe4 {[%clk 0:02:30]} 9. Nxe4 {[%clk 0:02:52]}  dxe4 {[%clk 0:02:30]} 10. Bxc4 {[%clk 0:02:48]}  Bf5 {[%clk 0:02:25]} 11. Qb3 {[%clk 0:02:47]}  Qxb3 {[%clk 0:02:23]} 12. axb3 {[%clk 0:02:48]}  Bg7 {[%clk 0:02:19]} 13. Ne2 {[%clk 0:02:27]}  e5 {[%clk 0:02:08]} 14. dxe5 {[%clk 0:02:24]}  Bxe5 {[%clk 0:01:58]} 15. Bb5 {[%clk 0:02:05]}  Bxf4 {[%clk 0:01:55]} 16. Nxf4 {[%clk 0:02:06]}  Ke7 {[%clk 0:01:50]} 17. Nd5+ {[%clk 0:01:34]}  Kd6 {[%clk 0:01:48]} 18. O-O-O {[%clk 0:01:32]}  Kc5 {[%clk 0:01:44]} 19. Ba4 {[%clk 0:01:06]}  Rad8 {[%clk 0:01:39]} 20. b4+ {[%clk 0:01:04]}  Kd6 {[%clk 0:01:38]} 21. h3 {[%clk 0:00:42]}  Ne5 {[%clk 0:01:14]} 22. Nf4+ {[%clk 0:00:31]}  Ke7 {[%clk 0:00:55]} 23. g4 {[%clk 0:00:32]}  Be6 {[%clk 0:00:55]} 24. Bc2 {[%clk 0:00:28]}  f5 {[%clk 0:00:53]} 25. gxf5 {[%clk 0:00:24]}  gxf5 {[%clk 0:00:54]} 26. Rhg1 {[%clk 0:00:20]}  Bc4 {[%clk 0:00:48]} 27. Rg7+ {[%clk 0:00:14]}  Bf7 {[%clk 0:00:48]} 28. Rdg1 {[%clk 0:00:12]}  Kf6 {[%clk 0:00:47]} 29. R7g3 {[%clk 0:00:06]}  Nf3 {[%clk 0:00:45]} 30. Rd1 {[%clk 0:00:06]}  Rxd1+ {[%clk 0:00:45]} 31. Bxd1 {[%clk 0:00:07]}  Ne5 {[%clk 0:00:40]} 32. Be2 {[%clk 0:00:07]}  Rd8 {[%clk 0:00:34]} 33. Kc2 {[%clk 0:00:07]}  b6 {[%clk 0:00:33]} 34. Ng2 {[%clk 0:00:06]}  Ng6 {[%clk 0:00:28]} 35. Ne3 {[%clk 0:00:05]}  f4 {[%clk 0:00:26]} 36. Ng4+ {[%clk 0:00:05]}  Kg5 {[%clk 0:00:25]} 37. Rg1 {[%clk 0:00:06]}  Kh4 {[%clk 0:00:25]} 38. Nf6 {[%clk 0:00:05]}  Ne5 {[%clk 0:00:05]} 39. Nxe4 {[%clk 0:00:04]}  f3 {[%clk 0:00:05]} 40. Bf1 {[%clk 0:00:05]}  Bg6 {[%clk 0:00:04]} 41. Bd3 {[%clk 0:00:04]}  Nxd3 {[%clk 0:00:03]} 42. Rg4+ {[%clk 0:00:04]}  Kxh3 {[%clk 0:00:03]} 43. Rg3+ {[%clk 0:00:04]}  Kh2 {[%clk 0:00:03]} 44. Ng5 {[%clk 0:00:01]}  Nxf2+ {[%clk 0:00:03]} 45. Kb3 {[%clk 0:00:01]}  Kxg3 {[%clk 0:00:03]} 0-1


[Site "https://www.chess.com"]

[Event "Titled Tuesday Blitz October 25 Late 2022"]
[White "Paravyan, David"]
[Black "Senthilkumar, Pranav"]
[WhiteFideId "4194985"]
[BlackFideId "2083477"]
[WhiteElo "3108"]
[BlackElo "2522"]
[Result "1-0"]
[Round "01"]
[TimeControl "180+1"]
[Date "2022.10.26"]
[WhiteClock "0:02:54"]
[BlackClock "0:02:42"]

1. e4 {[%clk 0:03:00]}  c5 {[%clk 0:02:58]} 2. Nf3 {[%clk 0:02:59]}  e6 {[%clk 0:02:59]} 3. d4 {[%clk 0:03:00]}  cxd4 {[%clk 0:03:00]} 4. Nxd4 {[%clk 0:03:00]}  Nc6 {[%clk 0:03:00]} 5. Nc3 {[%clk 0:03:01]}  Qc7 {[%clk 0:03:01]} 6. Nxc6 {[%clk 0:03:01]}  bxc6 {[%clk 0:03:02]} 7. Bd3 {[%clk 0:03:01]}  d5 {[%clk 0:03:01]} 8. O-O {[%clk 0:03:01]}  Nf6 {[%clk 0:03:01]} 9. exd5 {[%clk 0:03:02]}  cxd5 {[%clk 0:03:01]} 10. Nb5 {[%clk 0:03:00]}  Qb8 {[%clk 0:02:59]} 11. Qf3 {[%clk 0:02:57]}  Bd6 {[%clk 0:02:50]} 12. Nxd6+ {[%clk 0:02:56]}  Qxd6 {[%clk 0:02:51]} 13. Bf4 {[%clk 0:02:54]}  e5 {[%clk 0:02:50]} 14. Bxe5 {[%clk 0:02:54]}  Qxe5 {[%clk 0:02:48]} 15. Rfe1 {[%clk 0:02:54]}  Ne4 {[%clk 0:02:48]} 16. Bxe4 {[%clk 0:02:55]}  O-O {[%clk 0:02:42]} 17. Bxh7+ {[%clk 0:02:54]} 1-0


[Site "https://www.chess.com"]

[Event "Titled Tuesday Blitz October 25 Late 2022"]
[White "Petrova, Irina"]
[Black "Javakhadze, Zurab"]
[WhiteFideId "14124122"]
[BlackFideId "13603647"]
[WhiteElo "2023"]
[BlackElo "2381"]
[Result "1/2-1/2"]
[Round "01"]
[TimeControl "180+1"]
[Date "2022.10.26"]
[WhiteClock "0:00:17"]
[BlackClock "0:00:29"]

1. e4 {[%clk 0:03:00]}  e5 {[%clk 0:02:56]} 2. Nf3 {[%clk 0:02:59]}  Nc6 {[%clk 0:02:57]} 3. Bb5 {[%clk 0:02:58]}  a6 {[%clk 0:02:56]} 4. Ba4 {[%clk 0:02:58]}  Nf6 {[%clk 0:02:57]} 5. d3 {[%clk 0:02:58]}  d6 {[%clk 0:02:51]} 6. c3 {[%clk 0:02:56]}  g6 {[%clk 0:02:46]} 7. O-O {[%clk 0:02:49]}  Bg7 {[%clk 0:02:44]} 8. Nbd2 {[%clk 0:02:47]}  O-O {[%clk 0:02:44]} 9. Re1 {[%clk 0:02:47]}  b5 {[%clk 0:02:34]} 10. Bc2 {[%clk 0:02:46]}  Bb7 {[%clk 0:02:35]} 11. d4 {[%clk 0:02:43]}  Re8 {[%clk 0:02:34]} 12. d5 {[%clk 0:02:00]}  Ne7 {[%clk 0:02:29]} 13. a4 {[%clk 0:01:57]}  c6 {[%clk 0:02:28]} 14. dxc6 {[%clk 0:01:49]}  Nxc6 {[%clk 0:02:23]} 15. axb5 {[%clk 0:01:50]}  axb5 {[%clk 0:02:24]} 16. Rxa8 {[%clk 0:01:49]}  Bxa8 {[%clk 0:02:17]} 17. Qe2 {[%clk 0:01:45]}  Qb8 {[%clk 0:02:13]} 18. Nf1 {[%clk 0:01:43]}  d5 {[%clk 0:02:13]} 19. exd5 {[%clk 0:01:37]}  Nxd5 {[%clk 0:02:13]} 20. Ng3 {[%clk 0:01:24]}  Na5 {[%clk 0:01:49]} 21. Ne4 {[%clk 0:01:16]}  Nc4 {[%clk 0:01:42]} 22. Rd1 {[%clk 0:01:01]}  Nf4 {[%clk 0:01:37]} 23. Qf1 {[%clk 0:00:49]}  h6 {[%clk 0:01:32]} 24. b3 {[%clk 0:00:42]}  Na5 {[%clk 0:01:26]} 25. Nd6 {[%clk 0:00:42]}  Bxf3 {[%clk 0:01:00]} 26. gxf3 {[%clk 0:00:40]}  Rd8 {[%clk 0:00:59]} 27. Qxb5 {[%clk 0:00:35]}  Qc7 {[%clk 0:00:56]} 28. Bxf4 {[%clk 0:00:31]}  exf4 {[%clk 0:00:55]} 29. Ne4 {[%clk 0:00:29]}  Rb8 {[%clk 0:00:47]} 30. Qd5 {[%clk 0:00:25]}  Bxc3 {[%clk 0:00:41]} 31. Nxc3 {[%clk 0:00:25]}  Qxc3 {[%clk 0:00:41]} 32. Bxg6 {[%clk 0:00:22]}  Qxb3 {[%clk 0:00:37]} 33. Bxf7+ {[%clk 0:00:21]}  Kg7 {[%clk 0:00:29]} 34. Qxb3 {[%clk 0:00:21]}  Nxb3 {[%clk 0:00:29]} 35. Bxb3 {[%clk 0:00:21]}  Rxb3 {[%clk 0:00:30]} 36. Kg2 {[%clk 0:00:20]}  Kf6 {[%clk 0:00:31]} 37. Rd6+ {[%clk 0:00:20]}  Kg5 {[%clk 0:00:31]} 38. Rd5+ {[%clk 0:00:20]}  Kg6 {[%clk 0:00:30]} 39. Rd6+ {[%clk 0:00:19]}  Kg5 {[%clk 0:00:31]} 40. Rd5+ {[%clk 0:00:19]}  Kg6 {[%clk 0:00:29]} 41. Rd6+ {[%clk 0:00:17]}  Kg5 {[%clk 0:00:29]} 1/2-1/2


[Site "https://www.chess.com"]

[Event "Titled Tuesday Blitz October 25 Late 2022"]
[White "Piesik, Piotr"]
[Black "Ardila, Oscar Humberto"]
[WhiteFideId "1136194"]
[BlackFideId "4404742"]
[WhiteElo "2323"]
[BlackElo "1898"]
[Result "1/2-1/2"]
[Round "01"]
[TimeControl "180+1"]
[Date "2022.10.26"]
[WhiteClock "0:00:35"]
[BlackClock "0:00:20"]

1. Nf3 {[%clk 0:02:59]}  Nf6 {[%clk 0:03:00]} 2. g3 {[%clk 0:02:59]}  g6 {[%clk 0:03:00]} 3. Bg2 {[%clk 0:02:59]}  Bg7 {[%clk 0:03:01]} 4. O-O {[%clk 0:03:00]}  O-O {[%clk 0:03:02]} 5. d4 {[%clk 0:03:00]}  d6 {[%clk 0:03:03]} 6. Nbd2 {[%clk 0:02:59]}  Nbd7 {[%clk 0:03:03]} 7. e4 {[%clk 0:02:59]}  c6 {[%clk 0:03:03]} 8. Qe2 {[%clk 0:02:57]}  e5 {[%clk 0:03:02]} 9. dxe5 {[%clk 0:02:57]}  dxe5 {[%clk 0:03:02]} 10. a4 {[%clk 0:02:57]}  Qc7 {[%clk 0:03:02]} 11. b3 {[%clk 0:02:56]}  Re8 {[%clk 0:03:01]} 12. Bb2 {[%clk 0:02:56]}  Nc5 {[%clk 0:02:58]} 13. Rfd1 {[%clk 0:02:56]}  Bg4 {[%clk 0:02:57]} 14. h3 {[%clk 0:02:55]}  Bxf3 {[%clk 0:02:57]} 15. Bxf3 {[%clk 0:02:56]}  Ne6 {[%clk 0:02:57]} 16. c3 {[%clk 0:02:56]}  Rad8 {[%clk 0:02:57]} 17. Nc4 {[%clk 0:02:53]}  Nc5 {[%clk 0:02:29]} 18. Qc2 {[%clk 0:02:43]}  h5 {[%clk 0:02:20]} 19. b4 {[%clk 0:02:38]}  Ne6 {[%clk 0:02:19]} 20. h4 {[%clk 0:02:33]}  Ng4 {[%clk 0:02:18]} 21. Bxg4 {[%clk 0:02:30]}  hxg4 {[%clk 0:02:18]} 22. Ne3 {[%clk 0:02:30]}  Qc8 {[%clk 0:02:09]} 23. Qe2 {[%clk 0:02:25]}  Rxd1+ {[%clk 0:01:25]} 24. Rxd1 {[%clk 0:02:23]}  Rd8 {[%clk 0:01:26]} 25. Qxg4 {[%clk 0:02:22]}  Rxd1+ {[%clk 0:01:24]} 26. Qxd1 {[%clk 0:02:22]}  Kh7 {[%clk 0:01:23]} 27. h5 {[%clk 0:02:21]}  Ng5 {[%clk 0:01:22]} 28. hxg6+ {[%clk 0:02:20]}  fxg6 {[%clk 0:01:22]} 29. Qd3 {[%clk 0:01:51]}  Qh3 {[%clk 0:01:21]} 30. Nf1 {[%clk 0:01:47]}  Qg4 {[%clk 0:01:18]} 31. Nd2 {[%clk 0:01:44]}  Qd1+ {[%clk 0:01:13]} 32. Kg2 {[%clk 0:01:44]}  Qxa4 {[%clk 0:01:13]} 33. Nf1 {[%clk 0:01:36]}  c5 {[%clk 0:01:01]} 34. Bc1 {[%clk 0:01:34]}  Ne6 {[%clk 0:00:56]} 35. Qd5 {[%clk 0:01:27]}  Qc6 {[%clk 0:00:56]} 36. Be3 {[%clk 0:01:19]}  cxb4 {[%clk 0:00:53]} 37. Qxc6 {[%clk 0:01:16]}  bxc6 {[%clk 0:00:53]} 38. cxb4 {[%clk 0:01:17]}  Nd4 {[%clk 0:00:50]} 39. f4 {[%clk 0:01:00]}  Nc2 {[%clk 0:00:49]} 40. Bd2 {[%clk 0:00:59]}  exf4 {[%clk 0:00:46]} 41. gxf4 {[%clk 0:00:59]}  Bf8 {[%clk 0:00:46]} 42. Kf3 {[%clk 0:00:58]}  Bxb4 {[%clk 0:00:45]} 43. Ke2 {[%clk 0:00:54]}  Bxd2 {[%clk 0:00:43]} 44. Kxd2 {[%clk 0:00:55]}  Nd4 {[%clk 0:00:44]} 45. Kd3 {[%clk 0:00:54]}  Ne6 {[%clk 0:00:44]} 46. Ke3 {[%clk 0:00:54]}  Kg7 {[%clk 0:00:42]} 47. Nd2 {[%clk 0:00:55]}  Kf6 {[%clk 0:00:42]} 48. Nc4 {[%clk 0:00:54]}  c5 {[%clk 0:00:35]} 49. Nd6 {[%clk 0:00:46]}  a5 {[%clk 0:00:31]} 50. e5+ {[%clk 0:00:46]}  Ke7 {[%clk 0:00:28]} 51. Nc4 {[%clk 0:00:46]}  a4 {[%clk 0:00:28]} 52. Ke4 {[%clk 0:00:45]}  Kd7 {[%clk 0:00:26]} 53. Nb6+ {[%clk 0:00:44]}  Kc6 {[%clk 0:00:26]} 54. Nxa4 {[%clk 0:00:45]}  Kb5 {[%clk 0:00:25]} 55. Nc3+ {[%clk 0:00:44]}  Kc4 {[%clk 0:00:25]} 56. Nd5 {[%clk 0:00:43]}  Kb3 {[%clk 0:00:25]} 57. Ne7 {[%clk 0:00:40]}  c4 {[%clk 0:00:20]} 58. Nd5 {[%clk 0:00:36]}  c3 {[%clk 0:00:20]} 59. Nxc3 {[%clk 0:00:34]}  Kxc3 {[%clk 0:00:21]} 60. f5 {[%clk 0:00:34]}  gxf5+ {[%clk 0:00:20]} 61. Kxf5 {[%clk 0:00:35]}  Nd4+ {[%clk 0:00:20]} 62. Kf6 {[%clk 0:00:35]}  Kc4 {[%clk 0:00:20]} 63. e6 {[%clk 0:00:35]}  Nxe6 {[%clk 0:00:20]} 1/2-1/2


[Site "https://www.chess.com"]

[Event "Titled Tuesday Blitz October 25 Late 2022"]
[White "Polster, Christian"]
[Black "TheKnightBefore"]
[WhiteFideId "12965081"]
[WhiteElo "2209"]
[BlackElo "2604"]
[Result "0-1"]
[Round "01"]
[TimeControl "180+1"]
[Date "2022.10.26"]
[WhiteClock "0:00:03"]
[BlackClock "0:01:35"]

1. e4 {[%clk 0:02:45]}  e5 {[%clk 0:02:58]} 2. Nf3 {[%clk 0:02:43]}  Nc6 {[%clk 0:02:59]} 3. Bc4 {[%clk 0:02:37]}  Bc5 {[%clk 0:02:58]} 4. c3 {[%clk 0:02:30]}  Nf6 {[%clk 0:02:58]} 5. d4 {[%clk 0:02:30]}  exd4 {[%clk 0:02:59]} 6. cxd4 {[%clk 0:02:30]}  Bb4+ {[%clk 0:02:59]} 7. Nc3 {[%clk 0:02:31]}  Nxe4 {[%clk 0:02:58]} 8. O-O {[%clk 0:02:31]}  Bxc3 {[%clk 0:02:58]} 9. d5 {[%clk 0:02:30]}  Ne5 {[%clk 0:02:58]} 10. bxc3 {[%clk 0:02:28]}  Nxc4 {[%clk 0:02:57]} 11. Qd4 {[%clk 0:02:28]}  O-O {[%clk 0:02:51]} 12. Qxc4 {[%clk 0:02:21]}  Nf6 {[%clk 0:02:33]} 13. Bg5 {[%clk 0:02:03]}  d6 {[%clk 0:02:32]} 14. Rfe1 {[%clk 0:01:44]}  Bd7 {[%clk 0:02:28]} 15. Rab1 {[%clk 0:01:21]}  b5 {[%clk 0:02:19]} 16. Qh4 {[%clk 0:01:17]}  h6 {[%clk 0:02:05]} 17. Bxf6 {[%clk 0:00:43]}  Qxf6 {[%clk 0:02:06]} 18. Qxf6 {[%clk 0:00:43]}  gxf6 {[%clk 0:02:07]} 19. Nd4 {[%clk 0:00:40]}  Rfe8 {[%clk 0:02:02]} 20. Re3 {[%clk 0:00:27]}  a6 {[%clk 0:01:53]} 21. Rg3+ {[%clk 0:00:21]}  Kh7 {[%clk 0:01:53]} 22. Rf3 {[%clk 0:00:20]}  Re5 {[%clk 0:01:41]} 23. Rd1 {[%clk 0:00:04]}  Bg4 {[%clk 0:01:36]} 24. Rxf6 {[%clk 0:00:03]}  Bxd1 {[%clk 0:01:35]} 0-1


[Site "https://www.chess.com"]

[Event "Titled Tuesday Blitz October 25 Late 2022"]
[White "Potapova, Margarita"]
[Black "Kaplan, Ebru"]
[WhiteFideId "14126869"]
[BlackFideId "6315194"]
[WhiteElo "2150"]
[BlackElo "1941"]
[Result "1-0"]
[Round "01"]
[TimeControl "180+1"]
[Date "2022.10.26"]
[WhiteClock "0:01:39"]
[BlackClock "0:00:37"]

1. d4 {[%clk 0:03:00]}  d5 {[%clk 0:02:59]} 2. c4 {[%clk 0:03:00]}  c6 {[%clk 0:02:59]} 3. Nf3 {[%clk 0:02:59]}  Nf6 {[%clk 0:02:59]} 4. e3 {[%clk 0:03:00]}  Bf5 {[%clk 0:02:56]} 5. Bd3 {[%clk 0:03:00]}  e6 {[%clk 0:02:54]} 6. Bxf5 {[%clk 0:02:58]}  exf5 {[%clk 0:02:53]} 7. O-O {[%clk 0:02:58]}  Bd6 {[%clk 0:02:51]} 8. Qc2 {[%clk 0:02:59]}  g6 {[%clk 0:02:48]} 9. cxd5 {[%clk 0:02:59]}  Nxd5 {[%clk 0:02:42]} 10. Nc3 {[%clk 0:02:52]}  O-O {[%clk 0:02:41]} 11. Nxd5 {[%clk 0:02:51]}  cxd5 {[%clk 0:02:41]} 12. Qb3 {[%clk 0:02:52]}  Nc6 {[%clk 0:02:40]} 13. Qxb7 {[%clk 0:02:51]}  Na5 {[%clk 0:02:34]} 14. Qb5 {[%clk 0:02:50]}  Rb8 {[%clk 0:02:31]} 15. Qe2 {[%clk 0:02:50]}  Re8 {[%clk 0:02:30]} 16. b3 {[%clk 0:02:50]}  f4 {[%clk 0:02:20]} 17. Bd2 {[%clk 0:02:47]}  Nc6 {[%clk 0:02:13]} 18. Rac1 {[%clk 0:02:33]}  Qd7 {[%clk 0:02:01]} 19. Qd3 {[%clk 0:02:08]}  fxe3 {[%clk 0:01:42]} 20. fxe3 {[%clk 0:02:08]}  f5 {[%clk 0:01:39]} 21. Rc2 {[%clk 0:01:58]}  Nb4 {[%clk 0:01:15]} 22. Bxb4 {[%clk 0:01:58]}  Bxb4 {[%clk 0:01:15]} 23. Rfc1 {[%clk 0:01:53]}  Bd6 {[%clk 0:01:14]} 24. Rc6 {[%clk 0:01:44]}  Re7 {[%clk 0:01:05]} 25. Qa6 {[%clk 0:01:41]}  Bb4 {[%clk 0:01:01]} 26. Ne5 {[%clk 0:01:39]}  Rxe5 {[%clk 0:00:38]} 27. dxe5 {[%clk 0:01:40]}  d4 {[%clk 0:00:39]} 28. Qc4+ {[%clk 0:01:39]}  Kh8 {[%clk 0:00:37]} 29. Rc8+ {[%clk 0:01:39]} 1-0


[Site "https://www.chess.com"]

[Event "Titled Tuesday Blitz October 25 Late 2022"]
[White "Rasulov, Vugar"]
[Black "Sztokbant, Bernardo Vainzoff"]
[WhiteFideId "13402390"]
[BlackFideId "2115956"]
[WhiteElo "2509"]
[BlackElo "2171"]
[Result "1-0"]
[Round "01"]
[TimeControl "180+1"]
[Date "2022.10.26"]
[WhiteClock "0:01:11"]
[BlackClock "0:02:01"]

1. Nf3 {[%clk 0:01:15]}  g6 {[%clk 0:02:50]} 2. g3 {[%clk 0:01:16]}  Bg7 {[%clk 0:02:50]} 3. Bg2 {[%clk 0:01:16]}  e5 {[%clk 0:02:50]} 4. O-O {[%clk 0:01:17]}  Ne7 {[%clk 0:02:50]} 5. d3 {[%clk 0:01:17]}  d5 {[%clk 0:02:50]} 6. c4 {[%clk 0:01:18]}  O-O {[%clk 0:02:50]} 7. cxd5 {[%clk 0:01:18]}  Nxd5 {[%clk 0:02:50]} 8. Nc3 {[%clk 0:01:18]}  Re8 {[%clk 0:02:37]} 9. Bg5 {[%clk 0:01:16]}  Ne7 {[%clk 0:02:16]} 10. Qd2 {[%clk 0:01:12]}  Nbc6 {[%clk 0:02:15]} 11. Rac1 {[%clk 0:01:11]}  Be6 {[%clk 0:02:09]} 12. Ne4 {[%clk 0:01:12]}  f5 {[%clk 0:02:03]} 13. Nf6+ {[%clk 0:01:11]}  Bxf6 {[%clk 0:02:02]} 14. Bxf6 {[%clk 0:01:12]}  Qd6 {[%clk 0:02:01]} 15. Qh6 {[%clk 0:01:11]} 1-0


[Site "https://www.chess.com"]